[Event "Grand Prix Romania 1st Stage 2024"]
[Site "Bucuresti"]
[Date "2024.03.24"]
[Round "6.19"]
[White "Cnejev, Vladimir-Alexandru"]
[Black "Castellanos Rodriguez, Renier"]
[Result "1/2-1/2"]
[ECO "B51"]
[WhiteElo "2311"]
[BlackElo "2469"]
[Annotator "TA"]
[PlyCount "145"]
[EventDate "2024.03.20"]
[EventType "swiss"]
[EventCountry "ROU"]
[SourceTitle "playchess.com"]
[Source "ChessBase"]
[SourceQuality "1"]
[TimeControl "900+5"]

{[%evp 44,145,-88,-96,-74,-96,-108,-99,-46,-54,-79,-95,-103,-97,-104,-340,-131,-122,-102,-108,-59,-70,0,0,0,0,0,0,0,0,0,0,15,0,0,0,54,23,23,23,23,13,23,23,23,23,29,29,29,23,81,81,81,81,81,81,81,81,81,81,81,8,8,8,8,8,8,0,8,8,8,8,8,8,8,8,8,8,8,8,8,0,8,0,0,0,8,8,8,8,8,8,8,8,8,0,8,0,8,0,8,0,0,0]} 1. e4 {[%emt 0:00:04]} c5 {[%emt 0:00:02]} 2. Nf3 {[%emt 0:00:01]} Nc6 {[%emt 0:00:01]} 3. Bb5 {[%emt 0:00:02]} d6 {[%emt 0:00:02]} 4. O-O {[%emt 0:00:12]} Bd7 {[%emt 0:00:03]} 5. Re1 {[%emt 0:00:06]} Nf6 {[%emt 0:00:02]} 6. c3 {[%emt 0:00:25]} a6 {[%emt 0:00:01]} 7. Bf1 {[%emt 0:00:02]} Bg4 {[%emt 0:00:02]} 8. d4 {[%emt 0:00:16]} cxd4 {[%emt 0:00:52]} 9. cxd4 {[%emt 0:00:03]} d5 {[%emt 0:00:24]} 10. e5 {[%emt 0:00:31] B51: Sizilianisch (Rossolimo-Variante).} Ne4 {[%emt 0:00:26]} 11. h3 {[%emt 0:00:43]} Bf5 {[%emt 0:00:14]} 12. Be3 $146 {[%emt 0:01:50]} ({Predecessor:} 12. Nh4 Bc8 13. Be3 e6 14. Nf3 Be7 15. Nbd2 O-O 16. Nxe4 dxe4 17. Nd2 Nxd4 18. Nxe4 {1-0 Preotu,R (2487)-Delorme,A (2322) Titled Tuesday intern op 14th July blitz 2020 (2)}) 12... e6 {[%emt 0:00:08]} 13. Nc3 {[%emt 0:02:00]} Be7 {[%emt 0:01:13]} 14. a3 {[%emt 0:02:36]} Nxc3 {[%emt 0:01:08]} 15. bxc3 {[%emt 0:00:00]} Rc8 {[%emt 0:00:16]} 16. c4 {[%emt 0:00:38]} dxc4 {[%emt 0:00:47]} 17. Bxc4 {[%emt 0:00:02]} Na5 {[%emt 0:03:35]} 18. Ba2 {[%emt 0:00:38]} Nc4 {[%emt 0:00:08]} 19. Rc1 {[%emt 0:01:33]} Nxe3 {[%emt 0:00:16]} 20. Rxe3 {[%emt 0:00:12]} Rxc1 {[%emt 0:00:22]} 21. Qxc1 {[%emt 0:00:01]} O-O {[%emt 0:00:02]} 22. Qb2 {[%emt 0:01:55]} b5 {[%emt 0:00:12]} 23. Qb3 {[%emt 0:02:20]} Qd7 {[%emt 0:00:49]} 24. g4 {[%emt 0:00:08]} Bg6 {[%emt 0:00:04]} 25. d5 {[%emt 0:00:03]} Qxd5 {[%emt 0:00:19]} (25... exd5 $17 26. Qd1 Rd8) 26. Qxd5 $15 {[%emt 0:00:06]} exd5 {[%emt 0:00:01]} 27. Bxd5 {[%emt 0:00:28]} Rd8 {[%emt 0:00:07]} 28. Bb7 {[%emt 0:00:01]} a5 {[%emt 0:00:03]} 29. Rc3 $2 {[%emt 0:00:05]} (29. Bc6 $17) 29... h6 $2 {[%emt 0:00:52]} (29... b4 $19 {und Schwarz behält klar die Oberhand.} 30. axb4 axb4 (30... Bxb4 31. Rc4 $17)) 30. Ba6 $17 {[%emt 0:00:12]} b4 {[%emt 0:00:42]} 31. axb4 {[%emt 0:00:01]} axb4 {[%emt 0:00:01]} (31... a4 $17 32. Rc7 a3 (32... Bxb4 33. Bc4 $17)) 32. Rc7 $15 {[%emt 0:00:03] [#]} b3 {[%emt 0:00:34]} (32... Be4 $1 $15 33. Bc4 Rd1+ 34. Kh2 Kf8) 33. Rb7 $1 $11 {[%emt 0:00:14]} Bc2 {[%emt 0:00:31]} 34. Bc4 $1 {[%emt 0:00:06]} Kf8 {[%emt 0:00:01]} 35. Kh2 {[%emt 0:00:13]} Rc8 {[%emt 0:00:09]} 36. Bd5 {[%emt 0:00:04]} (36. Bxb3 $2 Be4 37. Rxe7 Kxe7 $19) 36... Rd8 {[%emt 0:00:26]} 37. Bc4 $1 {[%emt 0:00:04]} (37. Bxb3 $2 {geht unter.} Be4 38. Rxe7 Kxe7 $19) 37... Bd3 {[%emt 0:00:23]} 38. Nd2 {[%emt 0:00:06]} (38. Bxb3 $2 {zu gefräßig.} Be4 39. Rxe7 Kxe7 $19) 38... Bxc4 {[%emt 0:00:32]} 39. Nxc4 {[%emt 0:00:01]} Rd4 {[%emt 0:00:01]} (39... Bc5 $11) 40. Rxb3 {[%emt 0:00:06]} Rxc4 {[%emt 0:00:25]} 41. Rb8+ {[%emt 0:00:01]} Bd8 $1 {[%emt 0:00:00]} 42. Rxd8+ {[%emt 0:00:01]} Ke7 {[%emt 0:00:01]} 43. Rg8 {[%emt 0:00:17]} g6 {[%emt 0:00:01]} 44. Rh8 {[%emt 0:00:04]} Re4 {[%emt 0:00:02]} 45. Rxh6 {[%emt 0:00:03]} Rxe5 {[%emt 0:00:03]} 46. Rh8 {[%emt 0:00:08]} Ra5 {[%emt 0:00:00]} (46... g5 $11 {bleibt in der Remisbreite.}) 47. h4 $16 {[%emt 0:00:05]} Kf6 {[%emt 0:00:02]} 48. Kg3 {[%emt 0:00:03]} Ra4 {[%emt 0:00:01]} 49. Rb8 {[%emt 0:00:04]} Rc4 {[%emt 0:00:01]} 50. f3 {[%emt 0:00:01]} Ra4 {[%emt 0:00:00]} 51. Rb6+ {[%emt 0:00:02]} Kg7 {[%emt 0:00:01]} 52. h5 {[%emt 0:00:16]} (52. Rc6 $16) 52... gxh5 $11 {[%emt 0:00:04]} 53. gxh5 {[%emt 0:00:01]} Rc4 {[%emt 0:00:01]} 54. f4 {[%emt 0:00:07]} Rc1 {[%emt 0:00:03]} 55. Kg4 {[%emt 0:00:06]} Rc5 {[%emt 0:00:03]} 56. h6+ {[%emt 0:00:06]} Kh7 {[%emt 0:00:04]} 57. Rf6 {[%emt 0:00:03]} Ra5 {[%emt 0:00:01]} 58. Rxf7+ {[%emt 0:00:06]} Kxh6 {[%emt 0:00:01]} 59. Rb7 {[%emt 0:00:06]} Kg6 {[%emt 0:00:02]} 60. Rb6+ {[%emt 0:00:02]} Kg7 {[%emt 0:00:01]} 61. Rb1 {[%emt 0:00:08]} Kg6 {[%emt 0:00:02]} 62. Rh1 {[%emt 0:00:01]} Kg7 {[%emt 0:00:01]} 63. f5 {[%emt 0:00:07]} Rb5 {[%emt 0:00:03]} 64. Kg5 {[%emt 0:00:02]} Rb6 {[%emt 0:00:01]} 65. Ra1 {[%emt 0:00:04]} Rc6 {[%emt 0:00:01]} 66. Ra7+ {[%emt 0:00:02]} Kg8 {[%emt 0:00:03]} 67. Rb7 {[%emt 0:00:11]} Ra6 {[%emt 0:00:01]} 68. Rb1 {[%emt 0:00:04]} Kg7 {[%emt 0:00:01]} 69. Rh1 {[%emt 0:00:01]} Rb6 {[%emt 0:00:01]} 70. Ra1 {[%emt 0:00:09]} Rc6 {[%emt 0:00:01]} 71. Ra7+ {[%emt 0:00:01]} Kg8 {[%emt 0:00:01]} 72. f6 {[%emt 0:00:01]} Rc2 {[%emt 0:00:01]} 73. Kg6 {[%emt 0:00:03]} 1/2-1/2

[Event "Grand Prix Romania 1st Stage 2024"]
[Site "Bucuresti"]
[Date "2024.03.24"]
[Round "6.20"]
[White "Tilicheev, Viacheslav"]
[Black "Stefan, Romulus-Cristian"]
[Result "1-0"]
[ECO "D37"]
[WhiteElo "2485"]
[BlackElo "2171"]
[Annotator "TA"]
[PlyCount "75"]
[EventDate "2024.03.20"]
[EventType "swiss"]
[EventCountry "ROU"]
[SourceTitle "playchess.com"]
[Source "ChessBase"]
[SourceQuality "1"]
[TimeControl "900+5"]

{[%evp 9,75,33,27,44,43,36,38,28,31,35,25,3,8,1,45,8,7,14,0,31,35,22,47,46,54,73,61,50,80,85,107,91,188,177,215,212,212,209,218,228,223,227,239,231,305,296,309,309,301,309,287,271,335,300,320,324,284,246,296,294,321,302,326,285,271,304,389,365]} 1. d4 {[%emt 0:00:03]} d5 {[%emt 0:00:01]} 2. c4 {[%emt 0:00:02]} e6 {[%emt 0:00:02]} 3. Nf3 {[%emt 0:00:01]} Nf6 {[%emt 0:00:01]} 4. Nc3 {[%emt 0:00:03]} h6 {[%emt 0:00:03]} 5. g3 {[%emt 0:00:07]} Nc6 {[%emt 0:00:03]} 6. Bg2 {[%emt 0:00:03]} Bd6 {[%emt 0:00:01]} 7. O-O {[%emt 0:00:09]} O-O {[%emt 0:00:03]} 8. b3 {[%emt 0:00:10] White is slightly better.} dxc4 {[%emt 0:00:05]} 9. bxc4 {[%emt 0:00:02]} e5 {[%emt 0:00:00]} 10. d5 {[%emt 0:00:53]} Na5 {[%emt 0:00:11]} 11. Nd2 {[%emt 0:00:03]} c6 {[%emt 0:00:23]} 12. Bb2 {[%emt 0:01:30]} Re8 {[%emt 0:00:44]} 13. Rc1 {[%emt 0:01:08]} cxd5 {[%emt 0:00:51]} 14. cxd5 {[%emt 0:00:03]} Bd7 {[%emt 0:01:07] Against Nb5} 15. Nce4 {[%emt 0:00:21]} Nxe4 {[%emt 0:00:11]} 16. Nxe4 {[%emt 0:00:02]} ({Much weaker is} 16. Bxe4 b5 $11) 16... Qb6 {[%emt 0:00:15]} 17. Nxd6 {[%emt 0:02:06]} Qxd6 {[%emt 0:00:01]} 18. Qd3 {[%emt 0:00:01]} Rac8 {[%emt 0:00:16]} 19. Ba3 {[%emt 0:00:13] A strong pair of Bishops. White now steadily converts the win.} Qb6 {[%emt 0:00:24] [#]} 20. d6 $1 {[%emt 0:01:23]} Qd4 {[%emt 0:00:55]} (20... Qd8 $16) 21. Rc7 $18 {[%emt 0:01:45]} Rxc7 {[%emt 0:00:45]} 22. dxc7 {[%emt 0:00:04] Threatens to win with Qc2.} Rc8 {[%emt 0:00:50][%cal Od4d3]} 23. Bd6 {[%emt 0:00:43]} Nc4 {[%emt 0:01:58]} 24. Qxd4 {[%emt 0:00:19]} exd4 {[%emt 0:00:03]} 25. Bf4 {[%emt 0:00:02]} g5 {[%emt 0:01:11]} 26. Bxb7 {[%emt 0:00:02]} gxf4 {[%emt 0:00:05]} 27. Bxc8 {[%emt 0:00:01]} Bxc8 {[%emt 0:00:01]} 28. Rd1 {[%emt 0:00:02]} ({Much less strong is} 28. gxf4 $6 d3 $18) (28. Rc1 Nb6 29. gxf4 Nd5) 28... fxg3 {[%emt 0:00:09]} 29. hxg3 {[%emt 0:00:19]} Nb6 {[%emt 0:01:39]} 30. Rxd4 {[%emt 0:00:04]} Kf8 {[%emt 0:00:04]} 31. Rd8+ {[%emt 0:00:21]} Ke7 {[%emt 0:00:01]} 32. e4 {[%emt 0:00:31]} f6 {[%emt 0:00:33]} 33. Rh8 {[%emt 0:00:27]} Kd6 {[%emt 0:00:12]} 34. Rxh6 {[%emt 0:00:50]} Nd7 {[%emt 0:00:06]} 35. f4 {[%emt 0:00:12]} Kxc7 {[%emt 0:04:46] [#]} 36. Kf2 $1 {[%emt 0:00:01]} Bb7 {[%emt 0:00:00]} 37. Ke3 {[%emt 0:00:06]} Bc6 {[%emt 0:00:00]} 38. Kd4 {[%emt 0:00:07] Weighted Error Value: White=0.05 (flawless) /Black=0.21 (precise) .  Mistake:       	---       	Black=1      Inaccurate:     	White=1     	Black=3      OK:         	White=15    	Black=12     Best:        	White=4     	Black=2      Strong:       	White=2     	---} 1-0

[Event "Grand Prix Romania 1st Stage 2024"]
[Site "Bucuresti"]
[Date "2024.03.24"]
[Round "6.21"]
[White "Patrascu, Catalin-Lucian"]
[Black "Stoleriu, George"]
[Result "0-1"]
[ECO "B13"]
[WhiteElo "2298"]
[BlackElo "2391"]
[Annotator "RC"]
[PlyCount "87"]
[EventDate "2024.03.20"]
[EventType "swiss"]
[EventCountry "ROU"]
[SourceTitle "playchess.com"]
[Source "ChessBase"]
[SourceQuality "1"]
[TimeControl "900+5"]

1. e4 {[%emt 0:00:02]} c6 {[%emt 0:00:06]} 2. d4 {[%emt 0:00:18]} d5 {[%emt 0:00:02]} 3. exd5 {[%emt 0:00:04]} cxd5 {[%emt 0:00:01]} 4. Nf3 {[%emt 0:00:01]} Nc6 {[%emt 0:00:03]} 5. Ne5 {[%emt 0:00:01]} Nf6 {[%emt 0:00:44]} 6. Bb5 {[%emt 0:00:02]} Bd7 {[%emt 0:00:01]} 7. Nxd7 {[%emt 0:00:02]} Qxd7 {[%emt 0:00:01]} 8. c3 {[%emt 0:00:01]} e6 {[%emt 0:00:01]} 9. O-O {[%emt 0:00:02]} Bd6 {[%emt 0:00:04]} 10. Nd2 {[%emt 0:00:06]} O-O {[%emt 0:00:11]} 11. Re1 {[%emt 0:00:06]} Qc7 {[%emt 0:00:01]} 12. Nf1 {[%emt 0:02:29]} Ne7 {[%emt 0:01:24]} 13. Bd3 {[%emt 0:00:28]} Ng6 {[%emt 0:00:29]} 14. Bg5 {[%emt 0:02:32]} Nd7 {[%emt 0:01:37]} 15. Rc1 {[%emt 0:02:09]} Rab8 {[%emt 0:00:56]} 16. Bb1 {[%emt 0:01:03]} b5 {[%emt 0:00:29]} 17. Qd3 {[%emt 0:00:52]} Rfc8 {[%emt 0:00:09]} 18. h4 {[%emt 0:01:03]} Ngf8 {[%emt 0:01:17]} 19. Qf3 {[%emt 0:01:53]} h6 {[%emt 0:02:36]} 20. Bd2 {[%emt 0:00:34]} Qd8 {[%emt 0:00:01]} 21. g3 {[%emt 0:00:40]} a5 {[%emt 0:04:07]} 22. Ne3 {[%emt 0:00:17]} Nf6 {[%emt 0:00:01]} 23. Ng2 {[%emt 0:01:50]} b4 {[%emt 0:00:14]} 24. g4 {[%emt 0:00:08]} bxc3 {[%emt 0:00:01]} 25. bxc3 {[%emt 0:00:02]} Rb2 {[%emt 0:00:11]} 26. Be3 {[%emt 0:00:08]} Ne4 {[%emt 0:00:14]} 27. Bxe4 {[%emt 0:00:15]} dxe4 {[%emt 0:00:01]} 28. Qxe4 {[%emt 0:00:01]} Rxa2 {[%emt 0:00:01]} 29. c4 {[%emt 0:00:03]} Ba3 {[%emt 0:01:00]} 30. Ra1 {[%emt 0:00:11]} Rxa1 {[%emt 0:00:03]} 31. Rxa1 {[%emt 0:00:01]} Bb4 {[%emt 0:00:04]} 32. c5 {[%emt 0:00:03]} Ng6 {[%emt 0:00:09]} 33. h5 {[%emt 0:00:13]} Ne7 {[%emt 0:00:00]} 34. Nf4 {[%emt 0:00:01]} Qd7 {[%emt 0:00:11]} 35. Nd3 {[%emt 0:00:13]} Qd5 {[%emt 0:00:14]} 36. Qxd5 Nxd5 {[%emt 0:00:01]} 37. Kg2 {[%emt 0:00:05]} f6 {[%emt 0:00:22]} 38. Kf3 {[%emt 0:00:01]} Kf7 {[%emt 0:00:01]} 39. Ra2 {[%emt 0:00:13]} Rc7 {[%emt 0:00:09]} 40. Nb2 {[%emt 0:00:03]} e5 {[%emt 0:00:20]} 41. dxe5 {[%emt 0:00:08]} fxe5 {[%emt 0:00:01]} 42. Nc4 {[%emt 0:00:11]} e4+ 43. Kg2 {[%emt 0:00:05]} Nxe3+ {[%emt 0:01:02]} 44. Kg3 {[%emt 0:00:05]} 0-1

[Event "Grand Prix Romania 1st Stage 2024"]
[Site "Bucuresti"]
[Date "2024.03.24"]
[Round "6.22"]
[White "Vedmediuc, Serghei"]
[Black "Filip, Andrei"]
[Result "0-1"]
[ECO "B42"]
[WhiteElo "2452"]
[BlackElo "2289"]
[Annotator "TA"]
[PlyCount "70"]
[EventDate "2024.03.20"]
[EventType "swiss"]
[EventCountry "ROU"]
[SourceTitle "playchess.com"]
[Source "ChessBase"]
[SourceQuality "1"]
[TimeControl "900+5"]

{[%evp 13,70,39,30,16,32,29,31,11,27,20,22,10,14,-14,-20,-220,-227,-225,-222,-200,-224,-145,-107,-211,-187,-251,-256,-247,-214,-424,-387,-348,-262,-266,-264,-262,-242,-266,-266,-253,-210,-292,-264,-322,-316,-379,-394,-404,-402,-381,-314,-367,-354,-516,-509,-478,-479,-579,-566]} 1. e4 {[%emt 0:00:01]} c5 {[%emt 0:00:01]} 2. Nf3 {[%emt 0:00:02]} e6 {[%emt 0:00:01]} 3. d4 {[%emt 0:01:01]} cxd4 {[%emt 0:00:01]} 4. Nxd4 {[%emt 0:00:01]} a6 {[%emt 0:00:01]} 5. Bd3 {[%emt 0:00:07]} Bc5 {[%emt 0:00:01]} 6. Nb3 {[%emt 0:00:04]} Ba7 {[%emt 0:00:02]} 7. O-O {[%emt 0:01:10]} Ne7 {[%emt 0:00:26][%cal Bg8e7,Be7d5,Bd5c3][%mdl 32]} 8. c4 {[%emt 0:00:02]} Nbc6 {[%emt 0:00:14]} 9. Nc3 {[%emt 0:00:01]} O-O {[%emt 0:00:10]} 10. Qe2 {[%emt 0:00:02] Weiß steht etwas besser.} d5 {[%emt 0:00:22]} 11. exd5 {[%emt 0:01:14]} exd5 {[%emt 0:00:16]} 12. cxd5 {[%emt 0:01:56]} Nxd5 {[%emt 0:00:23]} 13. Rd1 {[%emt 0:00:21] Und jetzt Nxd5 wäre schön.} Nxc3 {[%emt 0:00:10]} 14. Bxh7+ $2 {[%emt 0:00:49]} (14. bxc3 $11 {und Weiss steht sicher.} Qh4 15. Re1) 14... Kh8 $1 $19 {[%emt 0:00:01]} 15. bxc3 {[%emt 0:00:06]} Qh4 {[%emt 0:00:02][%cal Oc8g4] Droht stark ...Bg4!} (15... Bxf2+ 16. Kxf2 Qh4+ 17. Kg1 $15) 16. Bc2 {[%emt 0:03:39]} Bg4 {[%emt 0:00:27]} 17. Qf1 {[%emt 0:00:02]} Bxd1 {[%emt 0:00:08]} 18. Bxd1 {[%emt 0:00:01]} (18. g3 $17 Bxf2+ 19. Kg2) 18... Rad8 {[%emt 0:00:55][%cal Oh4f2] ( -> ...Qxf2+!)} 19. Bc2 {[%emt 0:00:38]} (19. g3 {ist wohl besser.} Qf6 20. Bf4) 19... Ne5 {[%emt 0:00:50]} 20. h3 {[%emt 0:00:55] Gegen Ng4 gerichtet.} Rfe8 $40 {[%emt 0:00:27][%mdl 128] Schwarz hat starken Angriff.} 21. Ba3 $2 {[%emt 0:01:08]} (21. Nd4) 21... Qg3 {[%emt 0:01:24]} 22. Be4 {[%emt 0:01:05] [#] Lässt Nf3+ nicht zu} Ng4 $1 {[%emt 0:02:06][%mdl 512]} 23. hxg4 {[%emt 0:00:05]} Rxe4 {[%emt 0:00:02]} 24. Bc5 {[%emt 0:00:15] [#]} Qb8 {[%emt 0:00:14]} (24... Qxc3 25. Bxa7 Rxg4 26. Be3 $14) (24... Bxc5 25. Nxc5 Qf4 (25... Qxc3 $2 {zu gefräßig.} 26. Nxe4 Qa5 27. Qc4 $18) (25... Qxg4 $2 26. f3 $18) 26. Nxe4 Qxe4 27. Rd1 Rxd1 28. Qxd1 $14) 25. f3 {[%emt 0:00:18]} Re5 {[%emt 0:00:56]} 26. Bd4 {[%emt 0:00:20]} Bxd4+ {[%emt 0:00:39]} 27. Nxd4 {[%emt 0:00:05]} g6 {[%emt 0:01:44]} 28. Re1 {[%emt 0:00:40]} Rde8 {[%emt 0:00:16]} 29. Rd1 {[%emt 0:00:39]} Re3 {[%emt 0:00:26][%cal Ob8g3]} 30. Qf2 {[%emt 0:00:02]} Qe5 {[%emt 0:00:10] Es drohte Nf5} (30... Rxc3 31. Qb2 Qc7 32. Ne2 Qc5+ 33. Kh1 Rxe2 34. Qxe2 $11) 31. f4 {[%emt 0:00:20]} Re1+ {[%emt 0:00:30]} 32. Kh2 {[%emt 0:00:04]} Qe3 {[%emt 0:00:26]} 33. Qh4+ {[%emt 0:00:11] [#]} (33. Qxe1 Qxe1 34. Rxe1 Rxe1 $19) (33. Qxe3 $142 R8xe3 34. Rd2) 33... Kg8 $1 {[%emt 0:00:01] Schwarz steht klar auf Gewinn.} 34. Rxe1 {[%emt 0:00:12]} Qxe1 {[%emt 0:00:07]} 35. Qf6 {[%emt 0:00:12]} Qe7 {[%emt 0:00:17] Gewichteter Fehlerwert: Weiß=0.47/Schwarz=0.18 (sehr präzise) .  Verlustzug:     	Weiß=1     	---        Fehler:       	Weiß=4     	---        Ungenau:       	Weiß=2     	---        OK:         	Weiß=11    	Schwarz=13    Bester:       	Weiß=2     	Schwarz=1     Stark:        	---       	Schwarz=2} 0-1

[Event "Grand Prix Romania 1st Stage 2024"]
[Site "Bucuresti"]
[Date "2024.03.24"]
[Round "6.23"]
[White "Coman, Mihnea-George"]
[Black "Nevednichy, Vladislav"]
[Result "0-1"]
[ECO "B56"]
[WhiteElo "2243"]
[BlackElo "2445"]
[Annotator "TA"]
[PlyCount "80"]
[EventDate "2024.03.20"]
[EventType "swiss"]
[EventCountry "ROU"]
[SourceTitle "playchess.com"]
[Source "ChessBase"]
[SourceQuality "1"]
[TimeControl "900+5"]

{[%evp 12,80,35,21,19,14,17,12,12,-33,-45,-137,-137,-135,-129,-129,-134,-151,-106,-105,-107,-121,-114,-117,-111,-112,-115,-121,-110,-128,-124,-157,-149,-160,-156,-186,-168,-204,-180,-162,-120,-145,-113,-141,-147,-141,-148,-203,-200,-264,-142,-149,-147,-158,-158,-154,-122,-127,-124,-157,-127,-159,-137,-142,-148,-226,-232,-310,-309,-693,-681]} 1. e4 {[%emt 0:00:02]} c5 {[%emt 0:00:07]} 2. Nf3 {[%emt 0:00:02]} d6 {[%emt 0:00:01]} 3. d4 {[%emt 0:00:01]} cxd4 {[%emt 0:00:01]} 4. Nxd4 {[%emt 0:00:02]} Nf6 {[%emt 0:00:00]} 5. Nc3 {[%emt 0:00:03]} Bd7 {[%emt 0:00:04]} 6. Bg5 {[%emt 0:00:13]} e6 {[%emt 0:00:02]} 7. Qd2 {[%emt 0:00:05]} a6 {[%emt 0:00:01]} 8. O-O-O {[%emt 0:00:07]} h6 {[%emt 0:00:04]} 9. Bh4 {[%emt 0:01:32]} Nxe4 {[%emt 0:00:04] The position is equal.} 10. Nxe4 {[%emt 0:01:09]} Qxh4 {[%emt 0:00:02]} 11. Bd3 {[%emt 0:00:04]} ({Better is} 11. Re1 $1 $15 Kd8 12. g3) 11... d5 {[%emt 0:00:38]} 12. Nf3 {[%emt 0:00:08]} Qd8 {[%emt 0:00:04]} 13. Ng3 {[%emt 0:01:17]} Nc6 {[%emt 0:00:04]} 14. Rhe1 {[%emt 0:00:14]} Qa5 {[%emt 0:00:18]} 15. Qxa5 {[%emt 0:00:51]} Nxa5 {[%emt 0:00:02]} 16. Ne5 {[%emt 0:00:09]} Nc6 {[%emt 0:00:33]} 17. Nxd7 {[%emt 0:00:12]} Kxd7 {[%emt 0:00:01]} 18. c4 {[%emt 0:02:30]} dxc4 {[%emt 0:00:03]} 19. Bxc4+ {[%emt 0:00:17]} Kc7 {[%emt 0:00:01]} 20. Rd3 {[%emt 0:00:39]} Bb4 {[%emt 0:00:30]} 21. Re4 {[%emt 0:00:30]} Rad8 {[%emt 0:00:23]} 22. Rf3 {[%emt 0:00:33]} Rd7 {[%emt 0:02:09]} 23. a3 {[%emt 0:02:04]} Bd6 {[%emt 0:00:08]} 24. Nh5 {[%emt 0:00:25]} g6 {[%emt 0:00:39]} 25. Nf6 {[%emt 0:00:09]} Re7 {[%emt 0:00:06][%cal Oc7c8]} 26. h4 {[%emt 0:02:18]} h5 {[%emt 0:00:11]} 27. Re1 {[%emt 0:00:10]} Be5 {[%emt 0:02:09]} 28. Ne4 {[%emt 0:00:10]} Rd8 {[%emt 0:00:14]} 29. Ng5 {[%emt 0:00:21]} (29. Bb3 $17) 29... Rd4 $19 {[%emt 0:00:02][%csl LRc4,LRh4]} 30. Re4 {[%emt 0:00:43]} Rxe4 {[%emt 0:00:08]} (30... f6 $19 31. Nxe6+ Rxe6 32. Rxd4 Nxd4 33. Bxe6 Nxe6) 31. Nxe4 $17 {[%emt 0:00:01]} Bg7 {[%emt 0:00:05]} 32. Kb1 {[%emt 0:00:05]} Ne5 {[%emt 0:01:02]} 33. Rc3 {[%emt 0:00:01]} Kb8 {[%emt 0:00:24]} 34. Be2 {[%emt 0:00:16]} Nc6 {[%emt 0:00:22]} 35. Rc4 {[%emt 0:00:13]} Rd7 {[%emt 0:00:19]} 36. Bf3 {[%emt 0:00:18]} Bd4 {[%emt 0:00:30] And now ...Ne5 would win.} 37. Nc5 {[%emt 0:00:08]} Bxc5 {[%emt 0:00:02]} 38. Rxc5 {[%emt 0:00:01]} (38. Bxc6 $17 {is a better defense.} Rd1+ (38... bxc6 $2 39. Rxc5 Rd1+ 40. Rc1 $19) 39. Ka2 bxc6 (39... Bxf2 40. Be8 $17) 40. Rxc5) 38... Nd4 $19 {[%emt 0:00:09] Strongly threatening ...Nxf3.} 39. Be4 {[%emt 0:00:00]} Nb3 {[%emt 0:00:45]} 40. Rc2 {[%emt 0:00:16] [#]} (40. Re5) 40... Nd2+ {[%emt 0:00:03] Weighted Error Value: White=0.41/Black=0.14 (very precise) .  Mistake:       	White=4     	Black=1      Inaccurate:     	White=3     	---        OK:         	White=9     	Black=12     Best:        	---       	Black=3} 0-1

[Event "Grand Prix Romania 1st Stage 2024"]
[Site "Bucuresti"]
[Date "2024.03.24"]
[Round "6.24"]
[White "Padurean, Daniel-Cristian"]
[Black "Shuvalova, Polina"]
[Result "0-1"]
[ECO "B22"]
[WhiteElo "2115"]
[BlackElo "2455"]
[Annotator "RC"]
[PlyCount "108"]
[EventDate "2024.03.20"]
[EventType "swiss"]
[EventCountry "ROU"]
[SourceTitle "playchess.com"]
[Source "ChessBase"]
[SourceQuality "1"]
[TimeControl "900+5"]

1. e4 {[%emt 0:00:02]} c5 {[%emt 0:00:01]} 2. c3 {[%emt 0:00:05]} Nf6 {[%emt 0:00:07]} 3. e5 {[%emt 0:00:03]} Nd5 {[%emt 0:00:02]} 4. d4 {[%emt 0:00:01]} cxd4 {[%emt 0:00:06]} 5. Nf3 {[%emt 0:00:02]} Nc6 {[%emt 0:00:05]} 6. cxd4 {[%emt 0:00:02]} d6 {[%emt 0:00:05]} 7. Bc4 {[%emt 0:00:02]} Nb6 {[%emt 0:00:35]} 8. Bb5 {[%emt 0:00:03]} dxe5 {[%emt 0:00:10]} 9. Nxe5 {[%emt 0:00:06]} Bd7 {[%emt 0:00:02]} 10. Nxd7 {[%emt 0:00:02]} Qxd7 {[%emt 0:00:03]} 11. O-O {[%emt 0:00:02]} e6 {[%emt 0:00:06]} 12. Nc3 {[%emt 0:00:02]} Rd8 {[%emt 0:00:32]} 13. Qh5 {[%emt 0:00:16]} Be7 {[%emt 0:02:20]} 14. Rd1 {[%emt 0:01:51]} a6 {[%emt 0:00:06]} 15. Bxc6 {[%emt 0:01:21]} Qxc6 {[%emt 0:00:02]} 16. Be3 {[%emt 0:00:17]} O-O {[%emt 0:00:13]} 17. Rac1 {[%emt 0:00:18]} Qd7 {[%emt 0:01:10]} 18. Ne4 {[%emt 0:05:18]} Nd5 {[%emt 0:00:04]} 19. Nc5 {[%emt 0:00:38]} Qb5 {[%emt 0:00:14]} 20. Nd3 {[%emt 0:01:45]} Bf6 {[%emt 0:01:32]} 21. Rc5 {[%emt 0:00:20]} Qa4 {[%emt 0:00:03]} 22. a3 {[%emt 0:01:07]} Rd7 {[%emt 0:01:36]} 23. Qe2 {[%emt 0:00:41]} b6 {[%emt 0:00:16]} 24. Rc2 {[%emt 0:00:20]} Rfd8 {[%emt 0:00:07]} 25. Rdc1 {[%emt 0:00:49]} g6 {[%emt 0:01:26]} 26. h3 {[%emt 0:00:16]} Kg7 {[%emt 0:00:17]} 27. Ne5 {[%emt 0:00:35]} Bxe5 {[%emt 0:01:12]} 28. dxe5 {[%emt 0:00:02]} h6 {[%emt 0:00:05]} 29. Rc4 {[%emt 0:00:38]} Qb3 {[%emt 0:00:02]} 30. Bf4 {[%emt 0:00:25]} b5 {[%emt 0:00:39]} 31. Re4 {[%emt 0:00:03]} Ne7 {[%emt 0:00:17]} 32. Be3 {[%emt 0:00:06]} Rd1+ {[%emt 0:00:32]} 33. Rxd1 {[%emt 0:00:02]} Qxd1+ {[%emt 0:00:01]} 34. Qxd1 {[%emt 0:00:02]} Rxd1+ {[%emt 0:00:02]} 35. Kh2 {[%emt 0:00:02]} Rb1 {[%emt 0:00:01]} 36. Bd4 {[%emt 0:00:09]} Nd5 {[%emt 0:00:03]} 37. Re2 {[%emt 0:00:10]} Rd1 {[%emt 0:00:06]} 38. Bc5 {[%emt 0:00:02]} g5 {[%emt 0:00:05]} 39. g3 {[%emt 0:00:01]} Kg6 {[%emt 0:00:10]} 40. Kg2 {[%emt 0:00:02]} Rd3 {[%emt 0:00:03]} 41. f3 {[%emt 0:00:14]} h5 {[%emt 0:00:06]} 42. Kf2 {[%emt 0:00:03]} h4 {[%emt 0:00:04]} 43. gxh4 {[%emt 0:00:03]} gxh4 {[%emt 0:00:18]} 44. Be3 {[%emt 0:00:05]} Nxe3 {[%emt 0:00:23]} 45. Rxe3 {[%emt 0:00:01]} Rd2+ {[%emt 0:00:01]} 46. Kg1 {[%emt 0:00:12]} Rxb2 {[%emt 0:00:02]} 47. Re4 {[%emt 0:00:01]} Rb3 {[%emt 0:00:01]} 48. a4 {[%emt 0:00:04]} b4 {[%emt 0:00:04]} 49. Rxh4 {[%emt 0:00:07]} a5 {[%emt 0:00:01]} 50. Rg4+ {[%emt 0:00:07]} Kf5 {[%emt 0:00:05]} 51. Kg2 {[%emt 0:00:02]} Ra3 {[%emt 0:00:07]} 52. Kg3 {[%emt 0:00:05]} b3 {[%emt 0:00:11]} 53. Rf4+ {[%emt 0:00:01]} Kxe5 {[%emt 0:00:07]} 54. Rxf7 {[%emt 0:00:01]} Rxa4 {[%emt 0:03:27]} 0-1